Cogmind - Beta 17 @@@ ROGUE MODE // 2026.06.23 @ 19:19:35 Player: DZKane Result: Destroyed by S-43 Plague with Heavy Machine Gun Performance ------------- Evolutions (7) 3500 Regions Visited (15) 3000 Robots Destroyed (184) 920 Value Destroyed (7737) 7737 Prototype IDs (49) 980 Alien Tech Used (0) 0 Bonus (5038) 5038 TOTAL SCORE: 21175 Bonus ------- Met Warlord at Base 500 MAIN.C Attacked Warlord 500 Warlord Defense Kills 4038 Cogmind --------- Core Integrity 0/1300 Matter 242/300 Energy 99/100 System Corruption 4% Temperature Cool (0) Movement Core (50) Location -3/Research Parts ------- > --- POWER (2) -------- (None) > --- PROPULSION (8) --- (None) > --- UTILITY (9) ------ Machine Analyzer Hacking Suite > --- WEAPON (2) ------- (None) > --- INVENTORY (5) ---- Advanced Terrain Scan Processor Energy Filter Advanced Force Field High-powered Tractor Beam Advanced Remote Datajack Peak State ------------ > --- POWER ------------ Micro Antimatter Reactor Micro Antimatter Reactor > --- PROPULSION ------- Heavy Treads Biometal Leg Improved Thunder Leg Gyrokinetic Inverter Improved Gyrokinetic Inverter Q-thruster > --- UTILITY ---------- Medium Storage Unit Machine Analyzer Triangulator Experimental Target Analyzer Reaction Control System Hacking Suite Hacking Suite System Shield Ghost Barrier > --- WEAPON ----------- Advanced Remote Datajack Enhanced Force Lance > --- INVENTORY -------- Advanced Terrain Scan Processor Energy Filter Advanced Force Field High-powered Tractor Beam Plasma Cutter [Rating: 122] Favorites ----------- Power Improved Ion Engine Engine Improved Ion Engine Power Core Reinforced Fission Core Reactor Vortex Chain Reactor Propulsion Armored Wheel Treads Light Treads Leg Aluminum Leg Wheel Armored Wheel Hover Unit Gyrokinetic Inverter Flight Unit VTOL Module Utility Improved Targeting Computer Device Advanced Heat Sink Storage Huge Storage Unit Processor Improved Targeting Computer Hackware Ghost Barrier Protection Experimental Power Shielding Weapon Advanced Plasma Cannon Energy Gun Heavy Particle Gun Energy Cannon Advanced Plasma Cannon Ballistic Gun Light Assault Rifle Ballistic Cannon Mass Driver Launcher Improved Grenade Launcher Special Weapon Advanced Remote Datajack Impact Weapon Power Maul Piercing Weapon Enhanced Force Lance Build | -11 -10 -9 -9 -8 -7 -6 -5 -5 -5 -5 -4 -4 -4 -4 -3 ------- Run | Yrd Mat Mat Min Mat Fac Fac Fac Upp Upp War Pro Fac Upp Upp Res Slots Evolved 14 | . . 2 . 2 2 2 2 . . . . 2 . . 2 Power 1 | . . . . . 1 . . . . . . . . . . Propulsion 6 | . . 1 . . 1 . . . . . . 2 . . 2 Utility 7 | . . 1 . 2 . 2 2 . . . . . . . . Weapon . | . . . . . . . . . . . . . . . . Parts Attached 193 | 2 7 34 . 19 7 24 20 7 4 17 19 15 4 . 14 Power 24 | . 2 3 . 2 2 7 3 . 1 1 . 1 . . 2 Engine 13 | . 2 3 . 1 1 5 1 . . . . . . . . Core 8 | . . . . 1 1 2 2 . 1 . . 1 . . . Reactor 3 | . . . . . . . . . . 1 . . . . 2 Propulsion 55 | 2 2 13 . 3 3 3 6 1 . 3 5 8 1 . 5 Treads 20 | 2 . 4 . 2 1 1 2 1 . 2 3 . 1 . 1 Leg 9 | . 2 4 . . . . . . . . 1 . . . 2 Wheel 13 | . . 5 . 1 2 2 3 . . . . . . . . Hover 9 | . . . . . . . 1 . . . . 8 . . . Flight 4 | . . . . . . . . . . 1 1 . . . 2 Utility 73 | . 1 10 . 5 1 8 8 6 3 6 13 6 2 . 4 Device 41 | . 1 3 . 1 1 6 6 5 3 5 4 3 2 . 1 Storage 8 | . . 3 . . . . 1 . . . 2 1 . . 1 Processor 13 | . . 3 . 3 . 2 1 . . . 3 1 . . . Hackware 6 | . . . . . . . . . . . 3 1 . . 2 Protection 5 | . . 1 . 1 . . . 1 . 1 1 . . . . Artifact . | . . . . . . . . . . . . . . . . Weapon 41 | . 2 8 . 9 1 6 3 . . 7 1 . 1 . 3 Energy Gun 4 | . 1 . . 2 . 1 . . . . . . . . . Energy Cannon 12 | . . 2 . 2 . 2 2 . . 3 1 . . . . Ballistic Gun 10 | . 1 5 . 1 . 2 . . . . . . 1 . . Ballistic Cannon 1 | . . . . . . . 1 . . . . . . . . Launcher 6 | . . 1 . 3 . . . . . 1 . . . . 1 Special Weapon 6 | . . . . 1 1 . . . . 3 . . . . 1 Impact Weapon 1 | . . . . . . 1 . . . . . . . . . Slashing Weapon . | . . . . . . . . . . . . . . . . Piercing Weapon 1 | . . . . . . . . . . . . . . . 1 Special Melee Weapon . | . . . . . . . . . . . . . . . . Unidentified Prototypes 18 | . . . . 1 1 . 2 . . 10 2 1 . . 1 Parts Lost 97 | . 4 8 . 7 3 14 4 7 4 5 15 5 7 . 14 Power 11 | . 1 1 . 2 1 3 . . 1 . . 1 . . 1 Propulsion 36 | . 1 4 . 2 2 4 2 3 . 2 7 1 3 . 5 Utility 37 | . . 2 . 2 . 5 2 4 2 1 7 2 3 . 7 Weapon 13 | . 2 1 . 1 . 2 . . 1 2 1 1 1 . 1 Highest Loss Streak 12 | . 2 5 . 5 2 8 2 4 2 5 10 4 5 . 12 To Critical Strikes 2 | . . . . . . 1 . . . 1 . . . . . Average Backups 18 | 6 5 14 25 22 23 22 23 21 21 24 18 4 4 5 5 Power . | 1 . . 1 . . 3 2 1 . . . . . . . Propulsion 3 | 4 3 5 10 8 5 3 2 . 1 1 1 . . . . Utility 8 | . . 3 6 7 9 6 10 10 10 13 12 1 2 4 4 Weapon 4 | 1 1 3 6 5 6 6 6 7 7 7 2 . . . . Tool/Special . | . . . . . . . . . . . . . . . . Unused Backups 53 | . . 15 1 6 6 1 5 1 . 4 8 1 . . 5 Power 7 | . . 2 . 2 . . 2 . . . . 1 . . . Propulsion 7 | . . 2 1 3 . . . . . . 1 . . . . Utility 20 | . . 5 . 1 2 1 1 . . 1 4 . . . 5 Weapon 18 | . . 6 . . 4 . 2 1 . 3 2 . . . . Tool/Special 1 | . . . . . . . . . . . 1 . . . . Average Slot Usage (%) 88 | . 85 97 100 98 99 92 96 94 92 88 84 73 53 47 61 Engine 4 | . 13 11 11 4 7 8 3 . . . . . . . . Core 3 | . . . . 4 7 3 7 11 10 3 . 1 . . . Reactor 1 | . . . . . . . . . . 3 3 2 . . 2 Treads 7 | . 16 14 . 5 6 5 4 2 5 5 9 . 1 5 3 Leg 1 | . 10 4 . . . . . . . . 2 . . . 4 Wheel 10 | . . 12 33 21 22 14 13 14 11 10 3 . . . . Hover 1 | . . . . . . . . . . . . 19 15 10 7 Device 20 | . 3 8 11 8 14 15 30 38 34 29 29 12 9 10 6 Storage 6 | . 14 11 11 9 7 6 5 5 5 5 5 2 . . 1 Processor 10 | . . 9 11 26 15 23 15 5 5 5 6 15 11 10 8 Hackware 1 | . . . . . . . . . . . 3 15 11 10 13 Protection 2 | . . 2 . . . . . 1 5 10 3 . . . . Energy Gun 2 | . 14 . . 3 14 3 . . . . . . . . . Energy Cannon 6 | . . 1 22 9 . 5 9 7 11 9 8 . . . . Ballistic Gun 3 | . 11 19 . 2 . 2 . . . . . . 1 . . Peak Build Rating 122 | 6 7 21 21 31 38 59 76 78 82 100 97 116 93 57 122 Average Rating 58 | 6 5 15 21 26 37 50 68 74 77 93 83 95 64 57 83 On Entrance 46 | 6 6 6 21 21 31 38 59 71 77 72 90 53 77 57 57 Avg Prop Armor Cover (%) 12 | . . 11 . 9 9 7 7 10 10 12 19 10 15 36 28 Naked Turns . | . . . . . . . . . . . . . . . . Heaviest Build 146 | 13 14 97 97 97 101 124 143 144 142 146 141 55 22 2 41 Greatest Support 121 | 40 40 60 36 36 36 40 40 56 28 121 51 65 34 11 56 Greatest Overweight (x) 11 | . 2 2 2 4 4 3 5 5 5 11 11 . 5 . 1 Average Overweight (x) 2 | . . . 2 2 2 2 3 3 4 4 7 . . . . Largest Inventory Capacity 30 | 8 8 25 25 25 25 25 25 25 25 25 25 30 5 5 10 Average Capacity 20 | 8 8 15 25 25 25 25 25 25 25 25 20 5 5 5 7 Most Carried 25 | 6 7 25 25 25 25 25 25 25 25 25 25 5 5 5 7 Average Carried 18 | 6 5 14 24 23 24 23 24 22 21 24 18 4 4 5 5 Final Capacity 25 | 8 8 25 25 25 25 25 25 25 25 25 5 5 5 5 5 Final Carried 25 | 6 4 25 25 25 25 25 25 20 25 19 5 4 5 5 5 Class Distribution -------------------- 71% | Mutant 14% | Scavenger-Mutant 14% | Hacker-Mutant Dominant Class ---------------- Mutant | -10/Materials Scavenger-Mutant | -9/Materials Mutant | -9/Mines Mutant | -8/Materials Mutant | -7/Factory Mutant | -6/Factory Mutant | -5/Factory Mutant | -5/Upper Caves Mutant | -5/Upper Caves Mutant | -5/Warlord Scavenger-Mutant | -4/Proximity Caves Hacker-Mutant | -4/Factory Hacker-Mutant | -4/Upper Caves Hacker-Mutant | -4/Upper Caves Hacker-Mutant | -3/Research Resources | -11 -10 -9 -9 -8 -7 -6 -5 -5 -5 -5 -4 -4 -4 -4 -3 ----------- Run | Yrd Mat Mat Min Mat Fac Fac Fac Upp Upp War Pro Fac Upp Upp Res Matter Collected 3776 | 220 132 720 . 295 85 540 464 200 214 366 325 . 125 . 90 Remotely 443 | . . . . . . . . 108 . 287 48 . . . . Salvage Created 6131 | . 270 1067 162 676 157 956 938 279 356 691 173 40 85 . 281 Parts 279 | . 13 75 4 55 3 29 25 19 13 21 11 . 5 . 6 Haulers Intercepted 2 | . . 1 . 1 . . . . . . . . . . . Recyclers Shooed 2 | . . . . . . 2 . . . . . . . . . Parts Field Recycled 3 | . . . . . . . . . . . . 3 . . . Retrieved Matter 27 | . . . . . . . . . . . . 27 . . . Parts Self-Destructed 34 | . . . . . . . . 12 10 . 4 . 8 . . Prevented 1 | . . . . . . . . . . . . . 1 . . Parts Restored . | . . . . . . . . . . . . . . . . Kills | -11 -10 -9 -9 -8 -7 -6 -5 -5 -5 -5 -4 -4 -4 -4 -3 ------- Run | Yrd Mat Mat Min Mat Fac Fac Fac Upp Upp War Pro Fac Upp Upp Res Combat Hostiles Destroyed 163 | . 7 26 4 21 3 17 16 11 6 35 7 3 3 . 4 Melee 3 | . . . . . . 1 . . . 1 . . . . 1 Guns 32 | . 4 18 . 1 3 5 . . . . . . 1 . . Cannons 38 | . . 2 4 5 . 4 12 2 4 3 2 . . . . AOE 82 | . 2 6 . 15 . 7 2 8 . 31 5 3 . . 3 Classes Destroyed 20 | . 1 7 . 2 2 1 1 . . 3 2 . . . 1 Worker 3 | . . 2 . . . . 1 . . . . . . . . Builder 3 | . . . . 3 . . . . . . . . . . . Hauler 2 | . . 1 . 1 . . . . . . . . . . . Recycler 3 | . . 1 . . . 1 1 . . . . . . . . Mechanic 1 | . . . . . . 1 . . . . . . . . . Operator 3 | . . 1 . 1 . 1 . . . . . . . . . Watcher 6 | . . 3 . 1 . 2 . . . . . . . . . Swarmer 44 | . . 11 . 8 . 3 4 8 2 . 5 . 3 . . Saboteur 4 | . . . . . . . . . . 4 . . . . . Grunt 71 | . 7 9 4 10 . 9 2 2 . 24 . 3 . . 1 Brawler 2 | . . . . . . . 1 1 . . . . . . . Duelist 1 | . . . . . . . . . . . . . . . 1 Sentry 16 | . . 6 . 2 1 . 3 . 2 . 1 . . . 1 Specialist 1 | . . . . . . . . . . 1 . . . . . Hunter 8 | . . . . . 1 4 2 . . . . . . . 1 Programmer 11 | . . . . . 1 1 4 . 2 3 . . . . . Heavy 1 | . . . . 1 . . . . . . . . . . . Behemoth 1 | . . . . . . . . . . . 1 . . . . Executioner 3 | . . . . . . . . . . 3 . . . . . Samaritan 1 | . . . . . . . . . . . 1 . . . . Best Kill Streak 35 | . 3 5 2 7 2 9 5 5 5 35 5 3 1 . 3 Combat Bots Only 35 | . 3 4 2 5 2 7 4 5 5 35 5 3 1 . 3 Max Kills in Single Turn 6 | . 2 3 1 4 1 6 3 3 1 4 3 2 1 . 3 Gunslinging . | . . . . . . . . . . . . . . . . Exploded 5 | . 2 3 . 4 . 5 2 3 . 4 3 2 . . 3 Melee 1 | . . . . . . 1 . . . 1 . . . . 1 Uniques/NPCs Destroyed . | . . . . . . . . . . . . . . . . Combat | -11 -10 -9 -9 -8 -7 -6 -5 -5 -5 -5 -4 -4 -4 -4 -3 -------- Run | Yrd Mat Mat Min Mat Fac Fac Fac Upp Upp War Pro Fac Upp Upp Res Hostile Shots Fired 1172 | . 44 125 5 58 60 149 96 45 50 96 86 65 60 . 233 Missed 374 | . 8 27 2 15 21 40 31 12 12 39 27 34 18 . 88 Hits 798 | . 36 98 3 43 39 109 65 33 38 57 59 31 42 . 145 Melee 29 | . . . . . . . . 1 . 2 . 13 . . 13 Projectile 769 | . 36 98 3 43 39 109 65 32 38 55 59 18 42 . 132 AOE 2 | . . . . . . . . . . . . 2 . . . Critical Strikes 39 | . 1 3 . 5 1 6 2 . . 2 . 7 1 . 11 Part Disruptions 1 | . . . . . . . . . . 1 . . . . . Damage Taken 14810 | . 487 1240 32 1177 352 1786 1171 650 712 1176 1439 789 654 . 3145 Core 3397 | . 70 180 . 255 103 183 79 243 59 233 253 80 348 . 1311 Absorbed by Shields 708 | . . . . . . 208 294 167 39 . . . . . . Redirected to Shielding 334 | . . . . . . . . . . 90 244 . . . . Ignored by Resistances 586 | . . . . . . . . . . 198 388 . . . . Regen/Repaired (Parts) 394 | . . . . . . . 142 . . 252 . . . . . Core Remaining (%) 64 | 100 72 . 55 53 85 78 . . . . 13 . . 62 . Volleys Fired 460 | . 43 91 7 35 18 75 72 16 17 26 43 9 4 . 4 Largest 2 | . 2 2 2 2 2 2 2 2 2 2 2 1 1 . 1 Hottest 196 | . 70 136 136 136 110 130 196 196 196 180 188 36 33 . 52 Shots Fired 770 | . 69 177 14 55 32 109 117 30 36 40 74 9 4 . 4 Gun 342 | . 69 162 . 3 27 77 . . . . . . 4 . . Cannon 345 | . . 11 14 39 . 31 114 19 36 9 72 . . . . Launcher 64 | . . 4 . 13 . 1 1 11 . 21 2 9 . . 2 Special 19 | . . . . . 5 . 2 . . 10 . . . . 2 Kinetic 250 | . 29 161 . 3 . 42 11 . . . . . 4 . . Thermal 417 | . 33 12 14 26 27 66 103 19 36 9 72 . . . . Explosive 74 | . . 4 . 13 . 1 1 11 . 31 2 9 . . 2 Electromagnetic 20 | . 7 . . 13 . . . . . . . . . . . Robot Hit Streak 35 | . 11 13 6 30 35 33 35 8 8 10 13 7 1 . 1 Robot Miss Streak 5 | . 2 5 1 2 2 2 2 1 4 3 2 . 2 . 4 Penetration Max 1 | . . . . . . 1 . . . . . . . . . Secondary Targets 5 | . . 3 . . 1 1 . . . . . . . . . Max Gunslinging Chain 1 | . . 1 . . 1 1 . . . . . . . . . Shots Hit Robots 542 | . 55 128 10 41 22 88 75 12 21 24 49 5 1 . 11 Core Hits 339 | . 14 59 4 44 7 47 24 13 6 76 14 11 12 . 8 Critical Kills 3 | . . . . 1 . . 1 1 . . . . . . . Critical Parts Destroyed 1 | . . . . . . 1 . . . . . . . . . Critical Strikes 18 | . 4 . . 1 1 4 1 1 . 2 . . . . 4 Burn 8 | . 4 . . . 1 3 . . . . . . . . . Meltdown 2 | . . . . . . . 1 1 . . . . . . . Destroy 1 | . . . . 1 . . . . . . . . . . . Smash 1 | . . . . . . 1 . . . . . . . . . Sever 2 | . . . . . . . . . . 2 . . . . . Impale 4 | . . . . . . . . . . . . . . . 4 Melee Attacks 29 | . . . . . . 9 . . . . . . . . 20 Impact 9 | . . . . . . 9 . . . . . . . . . Slashing . | . . . . . . . . . . . . . . . . Piercing 20 | . . . . . . . . . . . . . . . 20 Sneak Attacks . | . . . . . . . . . . . . . . . . Combat Hostiles . | . . . . . . . . . . . . . . . . Follow-up Attacks . | . . . . . . . . . . . . . . . . Damage Inflicted 24958 | . 666 1873 205 2281 362 3797 2956 1006 800 6507 2371 910 112 . 1112 Guns 3595 | . 585 1360 . 35 362 1225 . . . . . . 28 . . Cannons 7888 | . . 165 205 708 . 677 2779 447 800 158 1949 . . . . Explosions 12427 | . 81 348 . 1538 . 1737 157 559 . 5967 422 910 . . 708 Melee 562 | . . . . . . 158 . . . . . . . . 404 Ramming 104 | . . . . . . . 20 . . . . . 84 . . Kinetic 2530 | . 180 1347 . 35 . 623 317 . . . . . 28 . . Thermal 9367 | . 419 178 205 431 362 1558 2462 447 800 158 1949 398 . . . Explosive 11669 | . . 348 . 1538 . 1458 157 559 . 5967 422 512 . . 708 Electromagnetic 344 | . 67 . . 277 . . . . . . . . . . . Impact 158 | . . . . . . 158 . . . . . . . . . Slashing 382 | . . . . . . . . . . 382 . . . . . Piercing 404 | . . . . . . . . . . . . . . . 404 Highest Corruption 13 | . . . . . 1 2 10 13 13 13 5 . . . 4 Average Corruption 7 | . . . . . 1 1 7 12 13 8 4 . . . 3 Corruption Purged 5 | . . . . . . . . . . . 5 . . . . Corruption Blocked . | . . . . . . . . . . . . . . . . Effects 123 | . . . . . 2 4 15 30 32 5 35 . . . . Message Errors 28 | . . . . . 1 2 2 6 6 1 10 . . . . Matter Fused 30 | . . . . . . . 4 7 9 2 8 . . . . Heat Flow Errors 16 | . . . . . . . . 7 3 1 5 . . . . Energy Discharges 11 | . . . . . . 1 3 . 3 . 4 . . . . Parts Rejected 2 | . . . . . . . . . 1 1 . . . . . Data Loss (minor) 17 | . . . . . . 1 4 5 5 . 2 . . . . Data Loss (major) 6 | . . . . . . . 2 1 1 . 2 . . . . Misfires 6 | . . . . . 1 . . 2 3 . . . . . . Alerts 4 | . . . . . . . . 2 . . 2 . . . . Weapon Failures 3 | . . . . . . . . . 1 . 2 . . . . Overload Shots . | . . . . . . . . . . . . . . . . Overflow Damage 855 | . . 3 . 76 . 253 65 139 7 160 91 23 . . 38 Projectiles 228 | . . . . . . 54 55 19 7 43 50 . . . . Explosions 543 | . . 3 . 76 . 153 10 120 . 117 41 23 . . . Melee 84 | . . . . . . 46 . . . . . . . . 38 Knockbacks 3 | . . . . . . 2 1 . . . . . . . . Impact 2 | . . . . . . 2 . . . . . . . . . Kinetic 1 | . . . . . . . 1 . . . . . . . . Secondary . | . . . . . . . . . . . . . . . . Self-Inflicted Damage 545 | . 36 15 . 149 . . 10 28 . 36 62 36 31 . 142 Shots 15 | . 1 1 . 5 . . . 1 . 1 2 2 . . 2 Rammed 50 | . . . . . . . 1 . . . . . 49 . . Targets Rammed 50 | . . . . . . . 1 . . . . . 49 . . Kicked . | . . . . . . . . . . . . . . . . Crushed . | . . . . . . . . . . . . . . . . Highest Temperature 765 | . 200 22 33 160 11 9 336 765 124 97 259 21 234 . 19 Average Temperature 93 | . 67 6 14 57 6 3 125 319 46 71 55 13 134 . 13 Received Heat Transfer 2499 | . 246 534 18 288 84 381 98 90 78 192 153 85 . . 252 Effects 8 | . . . . . . . . 8 . . . . . . . Damage (minor) 1 | . . . . . . . . 1 . . . . . . . Damage (major) 6 | . . . . . . . . 6 . . . . . . . Damage (core) 1 | . . . . . . . . 1 . . . . . . . Siege Activations . | . . . . . . . . . . . . . . . . Martial Activations . | . . . . . . . . . . . . . . . . Shielding Activations . | . . . . . . . . . . . . . . . . Robots Disrupted 1 | . . . . 1 . . . . . . . . . . . Combat Hostiles 1 | . . . . 1 . . . . . . . . . . . Robots Corrupted 1 | . . . . . . . . . . . . . 1 . . Combat Hostiles 1 | . . . . . . . . . . . . . 1 . . Parts Fried 5 | . . . . 3 . . . . . . . . 2 . . Impact Corruptions 2 | . . . . . . 1 . . . . . . 1 . . Robots Melted 7 | . 1 . . . . 1 2 1 2 . . . . . . Combat Hostiles 6 | . 1 . . . . . 2 1 2 . . . . . . Parts Melted 36 | . 3 1 1 . 5 5 14 1 4 . 2 . . . . Heat Transferred 12016 | . 1445 333 370 777 740 2322 2979 600 1150 . 1000 300 . . . Parts Sabotaged 2 | . . . . . . . . . . 2 . . . . . Parts Stolen . | . . . . . . . . . . . . . . . . Parts Stripped . | . . . . . . . . . . . . . . . . Power Chain Reactions 1 | . 1 . . . . . . . . . . . . . . Alert | -11 -10 -9 -9 -8 -7 -6 -5 -5 -5 -5 -4 -4 -4 -4 -3 ------- Run | Yrd Mat Mat Min Mat Fac Fac Fac Upp Upp War Pro Fac Upp Upp Res Maximum Alert Level 1 | . . 1 . 1 . 1 1 . . . . 1 . . . Low Security (%) 84 | 100 100 93 100 74 100 32 92 . . . . 90 . . 100 Level 1 15 | . . 6 . 25 . 67 7 . . . . 9 . . . Level 2 . | . . . . . . . . . . . . . . . . Level 3 . | . . . . . . . . . . . . . . . . Level 4 . | . . . . . . . . . . . . . . . . Level 5 . | . . . . . . . . . . . . . . . . High Security . | . . . . . . . . . . . . . . . . Max Security . | . . . . . . . . . . . . . . . . Peak Influence 397 | . 63 256 96 397 60 361 227 . . . . 229 . . 138 Initial 145 | . . 7 96 17 . . 145 . . . . . . . . Average 92 | . 19 75 52 143 8 206 110 . . . . 79 . . 21 Influence Increases 5158 | . 194 842 80 697 92 666 574 250 120 745 160 309 115 . 314 Destroy 0b10 Robot/C 3260 | . 140 520 80 420 60 340 320 220 120 700 140 60 60 . 80 Destroy 0b10 Robot/NC 105 | . . 40 . 30 . 25 10 . . . . . . . . Destroy Leader 526 | . 20 138 . 84 30 64 90 30 . . 20 10 10 . 30 Successful Hack 207 | . 16 29 . 5 . 55 19 . . . . 59 . . 24 Disable Machine 270 | . . . . 30 . 135 30 . . . . 75 . . . Destroy Structure 400 | . 3 25 . 83 2 47 60 . . . . 90 . . 90 Partial Spotted 45 | . . 15 . . . . 15 . . . . 15 . . . Lose Combat Pursuer 345 | . 15 75 . 45 . . 30 . . 45 . . 45 . 90 Influence Decreases 5050 | . 176 612 282 743 92 368 788 334 94 105 826 170 254 . 206 Entered New Map 1121 | . . 11 152 29 . . 153 32 . 26 666 . 52 . . Time Decay 2802 | . 136 530 130 279 90 288 478 232 84 29 140 120 152 . 114 Lost Part 627 | . 40 71 . 62 2 80 40 60 10 50 20 50 50 . 92 Lost Ally 10 | . . . . . . . . 10 . . . . . . . Purge Threat 490 | . . . . 373 . . 117 . . . . . . . . Squads Dispatched 20 | . 1 2 . 2 2 5 4 . . . . 1 . . 3 Investigation 5 | . 1 . . . 1 1 2 . . . . . . . . Extermination 6 | . . . . . 1 2 2 . . . . . . . 1 Reinforcement 9 | . . 2 . 2 . 2 . . . . . 1 . . 2 Assault . | . . . . . . . . . . . . . . . . Garrison . | . . . . . . . . . . . . . . . . Intercept . | . . . . . . . . . . . . . . . . Searches Triggered . | . . . . . . . . . . . . . . . . Construction Impeded 4 | . . . . 1 . 2 . . . . . . . . 1 Haulers Reinforced . | . . . . . . . . . . . . . . . . Active Scanning Responses . | . . . . . . . . . . . . . . . . Cargo Convoy Interrupts . | . . . . . . . . . . . . . . . . Stealth | -11 -10 -9 -9 -8 -7 -6 -5 -5 -5 -5 -4 -4 -4 -4 -3 --------- Run | Yrd Mat Mat Min Mat Fac Fac Fac Upp Upp War Pro Fac Upp Upp Res Distress Signals 9 | . 1 4 . 3 . . . . . . . 1 . . . Communications Jammed 1 | . . . . . . . 1 . . . . . . . . Distress Signals . | . . . . . . . . . . . . . . . . Times Spotted 224 | . 11 38 4 30 4 20 17 11 7 37 7 9 8 . 21 Peak Tracking Total 12 | . 4 5 2 6 2 7 4 4 3 12 5 4 5 . 12 Tactical Retreats 16 | . 1 4 . 3 . . 2 . . 2 . . 1 . 3 Traps | -11 -10 -9 -9 -8 -7 -6 -5 -5 -5 -5 -4 -4 -4 -4 -3 ------- Run | Yrd Mat Mat Min Mat Fac Fac Fac Upp Upp War Pro Fac Upp Upp Res Traps Triggered 10 | . 5 . . . . 4 1 . . . . . . . . Indirectly . | . . . . . . . . . . . . . . . . Trap Hack Attempts . | . . . . . . . . . . . . . . . . Triggered . | . . . . . . . . . . . . . . . . Disarmed . | . . . . . . . . . . . . . . . . Reprogrammed . | . . . . . . . . . . . . . . . . Reused . | . . . . . . . . . . . . . . . . Traps Extracted . | . . . . . . . . . . . . . . . . Installed . | . . . . . . . . . . . . . . . . Triggered . | . . . . . . . . . . . . . . . . Machines | -11 -10 -9 -9 -8 -7 -6 -5 -5 -5 -5 -4 -4 -4 -4 -3 ---------- Run | Yrd Mat Mat Min Mat Fac Fac Fac Upp Upp War Pro Fac Upp Upp Res Machines Disabled 20 | . . . . 2 . 9 2 . 1 1 . 5 . . . Max in Single Turn 5 | . . . . 1 . 3 1 . 1 1 . 5 . . . Garrison Access 2 | . . . . . . . 1 . . . . 1 . . . Machines Repaired . | . . . . . . . . . . . . . . . . Machines Dismantled 2 | . . . . 1 . . . . . 1 . . . . . Machines Sabotaged . | . . . . . . . . . . . . . . . . Overloaded Fab Kills . | . . . . . . . . . . . . . . . . Hacking | -11 -10 -9 -9 -8 -7 -6 -5 -5 -5 -5 -4 -4 -4 -4 -3 --------- Run | Yrd Mat Mat Min Mat Fac Fac Fac Upp Upp War Pro Fac Upp Upp Res Machines Accessed 37 | . 4 5 . 3 2 3 4 . 2 6 . 5 1 . 2 Terminals 22 | . 4 5 . 3 1 3 1 . . . . 4 1 . . Fabricators . | . . . . . . . . . . . . . . . . Repair Stations 1 | . . . . . . . 1 . . . . . . . . Recycling Units . | . . . . . . . . . . . . . . . . Scanalyzers 4 | . . . . . 1 . 1 . . . . . . . 2 Garrison Access 2 | . . . . . . . 1 . . . . 1 . . . Total Hacks 147 | . 18 17 . 11 9 6 12 . 5 17 . 44 2 . 6 Successful 77 | . 6 6 . 5 6 3 7 . 5 17 . 19 2 . 1 Failed 70 | . 12 11 . 6 3 3 5 . . . . 25 . . 5 Catastrophic 14 | . 1 . . 3 1 1 . . . . . 5 . . 3 Database Lockouts . | . . . . . . . . . . . . . . . . Manual 51 | . 4 4 . 10 1 . 5 . . . . 27 . . . Terminals 105 | . 18 17 . 11 2 6 6 . . . . 43 2 . . Fabricators . | . . . . . . . . . . . . . . . . Repair Stations 3 | . . . . . . . 3 . . . . . . . . Recycling Units . | . . . . . . . . . . . . . . . . Scanalyzers 15 | . . . . . 7 . 2 . . . . . . . 6 Garrison Access 2 | . . . . . . . 1 . . . . 1 . . . Terminal Hacks 54 | . 4 4 . 5 . 3 5 . 5 17 . 9 2 . . Record 11 | . . . . . . . . . 4 5 . . 2 . . Robot Analysis 2 | . . 1 . . . . . . . . . 1 . . . Prototype ID Bank 15 | . 1 . . 1 . 1 1 . . 10 . 1 . . . Open Door 3 | . . . . . . . . . 1 2 . . . . . Level Access Points 1 | . . . . . . 1 . . . . . . . . . Branch Access Points 1 | . . . . . . . . . . . . 1 . . . Emergency Access Points 1 | . . . . . . 1 . . . . . . . . . Terminal Index 1 | . . . . . . . . . . . . 1 . . . Fabricator Index 1 | . . . . . . . . . . . . 1 . . . Repair Station Index 1 | . . . . . . . 1 . . . . . . . . Alert Level 4 | . . 1 . 1 . . 1 . . . . 1 . . . Unreport Threat 4 | . . . . 3 . . 1 . . . . . . . . Locate Traps 1 | . . . . . . . . . . . . 1 . . . Dispatch Records 1 | . . 1 . . . . . . . . . . . . . Transport Status 1 | . 1 . . . . . . . . . . . . . . Hauler Manifests 2 | . 1 . . . . . 1 . . . . . . . . Registered Components 1 | . . 1 . . . . . . . . . . . . . Zone Layout 3 | . 1 . . . . . . . . . . 2 . . . Fabricator Hacks . | . . . . . . . . . . . . . . . . Repair Station Hacks . | . . . . . . . . . . . . . . . . Recycling Unit Hacks . | . . . . . . . . . . . . . . . . Scanalyzer 7 | . . . . . 6 . . . . . . . . . 1 Insert Component 2 | . . . . . 2 . . . . . . . . . . Analyze 2 | . . . . . 2 . . . . . . . . . . Retrieve Study 3 | . . . . . 2 . . . . . . . . . 1 Garrison Access Hacks 2 | . . . . . . . 1 . . . . 1 . . . Seal Access 2 | . . . . . . . 1 . . . . 1 . . . Unauthorized Hacks 14 | . 2 2 . . . . 1 . . . . 9 . . . Terminals 13 | . 2 2 . . . . . . . . . 9 . . . Assimilate 2 | . . . . . . . . . . . . 2 . . . Botnet 5 | . 1 2 . . . . . . . . . 2 . . . Operators 2 | . 1 . . . . . . . . . . 1 . . . Skim 4 | . . . . . . . . . . . . 4 . . . Fabricators . | . . . . . . . . . . . . . . . . Repair Stations 1 | . . . . . . . 1 . . . . . . . . Patch 1 | . . . . . . . 1 . . . . . . . . Recycling Units . | . . . . . . . . . . . . . . . . Scanalyzers . | . . . . . . . . . . . . . . . . Garrison Access . | . . . . . . . . . . . . . . . . Data Cores Recovered 1 | . . . . 1 . . . . . . . . . . . Used . | . . . . . . . . . . . . . . . . Hacking Detections 27 | . 4 5 . 3 2 3 3 . . . . 4 1 . 2 Full Trace Events 2 | . . . . . 1 . 1 . . . . . . . . Feedback Events . | . . . . . . . . . . . . . . . . Feedback Blocked . | . . . . . . . . . . . . . . . . Robot Schematics Acquired . | . . . . . . . . . . . . . . . . Robots Built . | . . . . . . . . . . . . . . . . Authchips . | . . . . . . . . . . . . . . . . Time . | . . . . . . . . . . . . . . . . Total Robot Build Rating . | . . . . . . . . . . . . . . . . Part Schematics Acquired 2 | . . . . . 2 . . . . . . . . . . Parts Built . | . . . . . . . . . . . . . . . . Authchips . | . . . . . . . . . . . . . . . . Time . | . . . . . . . . . . . . . . . . Total Part Build Rating . | . . . . . . . . . . . . . . . . Part Studies Acquired 3 | . . . . . 2 . . . . . . . . . 1 Parts Repaired . | . . . . . . . . . . . . . . . . Time . | . . . . . . . . . . . . . . . . Parts Recycled . | . . . . . . . . . . . . . . . . Recycled Matter . | . . . . . . . . . . . . . . . . Retrieved Matter . | . . . . . . . . . . . . . . . . Retrieved Components . | . . . . . . . . . . . . . . . . Parts Scanalyzed 2 | . . . . . 2 . . . . . . . . . . Part Schematics Acquired 2 | . . . . . 2 . . . . . . . . . . Parts Damaged . | . . . . . . . . . . . . . . . . Bothacking | -11 -10 -9 -9 -8 -7 -6 -5 -5 -5 -5 -4 -4 -4 -4 -3 ------------ Run | Yrd Mat Mat Min Mat Fac Fac Fac Upp Upp War Pro Fac Upp Upp Res Used RIF Installer . | . . . . . . . . . . . . . . . . Robots Hacked 5 | . . . . . 3 . 2 . . . . . . . . Non-combat 5 | . . . . . 3 . 2 . . . . . . . . Combat . | . . . . . . . . . . . . . . . . Robot Hacks Applied 6 | . . . . . 4 . 2 . . . . . . . . parse_system 2 | . . . . . 1 . 1 . . . . . . . . find_chute 2 | . . . . . 1 . 1 . . . . . . . . find_fabricator 1 | . . . . . 1 . . . . . . . . . . find_recycling 1 | . . . . . 1 . . . . . . . . . . Relay Couplers Released . | . . . . . . . . . . . . . . . . Fabnet Peak Effective % . | . . . . . . . . . . . . . . . . Robots Rewired . | . . . . . . . . . . . . . . . . Allies Hacked . | . . . . . . . . . . . . . . . . Hacks Repelled . | . . . . . . . . . . . . . . . . Allies | -11 -10 -9 -9 -8 -7 -6 -5 -5 -5 -5 -4 -4 -4 -4 -3 -------- Run | Yrd Mat Mat Min Mat Fac Fac Fac Upp Upp War Pro Fac Upp Upp Res Total Allies . | . . . . . . . . . . . . . . . . Largest Group . | . . . . . . . . . . . . . . . . Highest-Rated Group . | . . . . . . . . . . . . . . . . Highest-Rated Ally . | . . . . . . . . . . . . . . . . Total Orders 12 | . . . . . . . 2 6 4 . . . . . . EXPLORE 10 | . . . . . . . 2 5 3 . . . . . . RETURN 2 | . . . . . . . . 1 1 . . . . . . Ally Attacks . | . . . . . . . . . . . . . . . . Total Damage . | . . . . . . . . . . . . . . . . Kills . | . . . . . . . . . . . . . . . . Allies Corrupted 1 | . . . . . . . 1 . . . . . . . . Allies Melted . | . . . . . . . . . . . . . . . . Intel | -11 -10 -9 -9 -8 -7 -6 -5 -5 -5 -5 -4 -4 -4 -4 -3 ------- Run | Yrd Mat Mat Min Mat Fac Fac Fac Upp Upp War Pro Fac Upp Upp Res Active Infowar (turns) 8383 | . . 325 . . 567 454 1290 673 661 1728 1355 255 519 168 388 Optics 325 | . . 325 . . . . . . . . . . . . . Sensors 1021 | . . . . . 567 454 . . . . . . . . . Seismic 468 | . . . . . . . . . . . . . 159 168 141 Machine Analysis 2396 | . . . . . . . 739 35 . . 292 255 519 168 388 Triangulation 181 | . . . . . . . . . . . . . 181 . . Cloaking 134 | . . . . . . . . . . 1 . 133 . . . Jamming 5415 | . . . . . . . 1290 673 661 1728 1063 . . . . Robot Analysis Total 2 | . . 1 . . . . . . . . . 1 . . . Derelict Logs Recovered 5 | . . . . . . . . 1 . . 3 . 1 . . Drone Launches 10 | . . . . . . . 2 5 3 . . . . . . Drone Recoveries 5 | . . . . . . . 1 3 1 . . . . . . Exploration | -11 -10 -9 -9 -8 -7 -6 -5 -5 -5 -5 -4 -4 -4 -4 -3 ------------- Run | Yrd Mat Mat Min Mat Fac Fac Fac Upp Upp War Pro Fac Upp Upp Res Turns Passed 11868 | 10 633 1539 260 620 631 1000 1314 685 661 1728 1384 255 592 168 388 Spaces Moved 6724 | 5 312 717 139 344 442 560 689 300 335 947 499 415 545 153 322 Core 112 | . 1 . . . . . . . . . . . 1 . 110 Treads 489 | 5 184 292 . . . . . . . 2 6 . . . . Legs 328 | . 127 109 . . . . . . . . . . . . 92 Wheels 4424 | . . 316 139 344 442 560 689 300 335 945 354 . . . . Hover 1116 | . . . . . . . . . . . . 338 544 153 81 Flight 255 | . . . . . . . . . . . 139 77 . . 39 Fastest Speed 35 | 160 120 80 120 120 120 120 135 126 155 155 35 35 60 110 50 Average Speed 132 | 160 143 135 120 129 120 126 142 144 156 166 194 46 84 110 90 Slowest Speed 320 | 160 160 190 120 150 150 140 165 170 170 255 320 61 300 110 180 Overloaded Moves . | . . . . . . . . . . . . . . . . Propulsion Burnouts . | . . . . . . . . . . . . . . . . Robots Hopped 1 | . . . . . . . . . . . . . . . 1 Potential Cave-ins 5 | . . . . . . 3 2 . . . . . . . . Cave-ins Triggered 1 | . . . . . . . 1 . . . . . . . . Exploration Rate (%) 42 | 2 65 70 42 37 13 16 15 81 75 89 74 9 64 17 15 Regions Visited 15 Branch Regions 7 Pre-discovered Areas 2 | . . . . . . . . . 1 . 1 . . . . Known Exits Taken 5 | . . . . 1 1 1 1 . . . . 1 . . . Unknown Exits Taken 10 | 1 1 1 1 . . . . 1 1 1 1 . 1 1 . Scrap Searched 10 | . . . 1 . . . . 2 2 . 2 . 2 1 . Spaces Dug 195 | . . 5 . 43 . 11 24 20 . 17 20 29 . . 26 Terrain Destroyed 628 | . 2 24 . 85 . 61 41 104 6 168 33 57 . . 47 Melee 11 | . . . . . . 5 . . . . . . . . 6 Projectile 84 | . . . . . . 9 36 7 6 6 20 . . . . AOE 533 | . 2 24 . 85 . 47 5 97 . 162 13 57 . . 41 Terrain Rammed . | . . . . . . . . . . . . . . . . Walls Destroyed . | . . . . . . . . . . . . . . . . Machines Disabled . | . . . . . . . . . . . . . . . . Actions | -11 -10 -9 -9 -8 -7 -6 -5 -5 -5 -5 -4 -4 -4 -4 -3 --------- Run | Yrd Mat Mat Min Mat Fac Fac Fac Upp Upp War Pro Fac Upp Upp Res Total 8892 | 6 429 1155 219 458 517 718 909 522 438 1040 825 466 670 152 368 Wait 1036 | . 62 208 70 25 28 9 62 185 74 5 242 3 63 . . Move 6706 | 4 311 716 138 343 441 559 687 299 334 946 498 414 544 152 320 Hop 1 | . . . . . . . . . . . . . . . 1 Pick Up 160 | . 1 53 2 16 11 13 21 5 8 8 11 5 4 . 2 Fast Attach 97 | . 8 19 . 5 2 4 11 . . 14 4 13 2 . 15 Attach 83 | . 3 6 . 9 5 13 10 7 3 9 12 3 3 . . Detach 10 | . . 1 . . . . 3 . . 1 4 . . . 1 Swap 83 | 2 1 12 . 9 3 14 13 8 2 6 7 5 . . 1 Drop 148 | . . 49 2 12 9 6 28 2 . 17 4 14 1 . 4 Fire 460 | . 43 91 7 35 18 75 72 16 17 26 43 9 4 . 4 Melee 29 | . . . . . . 9 . . . . . . . . 20 Ram 50 | . . . . . . . 1 . . . . . 49 . . Kick . | . . . . . . . . . . . . . . . . Crush . | . . . . . . . . . . . . . . . . Escape Stasis 17 | . . . . . . 16 1 . . . . . . . . Rewire . | . . . . . . . . . . . . . . . . Trap . | . . . . . . . . . . . . . . . . Miscellaneous 12 | . . . . 4 . . . . . 8 . . . . . Route ------- -11/Scrapyard -10/Materials (discovered 3 exits: *Mat x2 / [*Min]) -9/Materials (discovered 4 exits: *Mat / [*Min x2] / [*Sto]) -9/Mines -8/Materials -7/Factory -6/Factory (discovered 4 exits: *Fac x4) -5/Factory -5/Upper Caves -5/Upper Caves -5/Warlord -4/Proximity Caves -4/Factory (discovered 2 exits: *Upp x2) -4/Upper Caves -4/Upper Caves -3/Research History --------- Turn | Location | Event 4 | -11/Scrapyard | Discovered new exit (range 3) 11 | -11/Scrapyard | Entered Materials 161 | -10/Materials | Discovered new exit (range 4) 304 | -10/Materials | Build established: Mutant 494 | -10/Materials | Discovered new exit (range 14) 601 | -10/Materials | Discovered new exit (range 15) 611 | -10/Materials | Derelicts attacked the area 644 | -10/Materials | Entered another Materials area 644 | -9/Materials | Evolved 2 slots: Propulsion x1, Utility x1 886 | -9/Materials | Lost 5 parts (1p2n1u1w) 1123 | -9/Materials | Discovered new exit (range 3) 1160 | -9/Materials | Build established: Scavenger-Mutant 1406 | -9/Materials | Discovered new exit (range 16) 1498 | -9/Materials | Discovered new exit (range 16) 1952 | -9/Materials | Build established: Mutant 2108 | -9/Materials | Discovered new exit (range 10) 2183 | -9/Materials | Entered Mines 2208 | -9/Mines | YI-UF0 nonchalantly dropped a Grenade Launcher on the ground 2301 | -9/Mines | Excavation squad dispatched 2301 | -9/Mines | A large section of the Mines collapsed 2418 | -9/Mines | Discovered new exit (range 8) 2443 | -9/Mines | Entered Materials 2443 | -8/Materials | Evolved 2 slots: Utility x2 2656 | -8/Materials | Discovered new exit (range 15) 2719 | -8/Materials | Lost 5 parts (2n2u1w) 3062 | -8/Materials | Identified exit to Factory 3063 | -8/Materials | Entered Factory 3063 | -7/Factory | Evolved 2 slots: Power x1, Propulsion x1 3545 | -7/Factory | Discovered new exit (range 14) 3560 | -7/Factory | Identified exit to Factory 3694 | -7/Factory | Entered another Factory area 3694 | -6/Factory | Evolved 2 slots: Utility x2 4007 | -6/Factory | Lost 8 parts (3p2n2u1w) 4042 | -6/Factory | Destroyed 7 combat bots 4072 | -6/Factory | Identified exit to Factory 4234 | -6/Factory | Lost 5 parts (2n2u1w) 4694 | -6/Factory | Entered another Factory area 4694 | -5/Factory | Evolved 2 slots: Utility x2 5126 | -5/Factory | Discovered new exit (range 22) 5219 | -5/Factory | Identified exit to Upper Caves 5645 | -5/Factory | Crushed by falling debris 5728 | -5/Factory | System corruption reached 10% 5852 | -5/Factory | Spotted B-75 Beast 6008 | -5/Factory | Entered Upper Caves 6084 | -5/Upper Caves | Encountered a Warlord checkpoint 6097 | -5/Upper Caves | Lost 4 parts (2n2u) 6408 | -5/Upper Caves | Learned Factory garrison access intel 6644 | -5/Upper Caves | Discovered new exit (range 25) 6693 | -5/Upper Caves | Entered another Upper Caves area 6755 | -5/Upper Caves | Attracted the attention of an 0b10 checkpoint 6889 | -5/Upper Caves | Encountered a Warlord checkpoint 7242 | -5/Upper Caves | Learned location of Armory (-3) 7242 | -5/Upper Caves | Learned Extension stockpile data 7242 | -5/Upper Caves | Learned Research security intel 7242 | -5/Upper Caves | Learned Research terminal intel 7339 | -5/Upper Caves | Discovered new exit (range 10) 7354 | -5/Upper Caves | Entered Warlord 7407 | -5/Warlord | System corruption cleaned by Quarantine Array 7480 | -5/Warlord | Found Prototype Special Weapon 7480 | -5/Warlord | Identified RU-N14's Throwing Claymores v3 7485 | -5/Warlord | Found RU-N14's Throwing Claymores v3 7488 | -5/Warlord | Found RU-N14's Throwing Claymores v3 7870 | -5/Warlord | Found Prototype Reactor 7870 | -5/Warlord | Identified Vortex Chain Reactor 7878 | -5/Warlord | Found Prototype Device 7878 | -5/Warlord | Identified Exp. Cloaking Device 7899 | -5/Warlord | Found Prototype Device 7899 | -5/Warlord | Identified Exp. Focal Shield 7902 | -5/Warlord | Found Prototype Processor 7907 | -5/Warlord | Found Prototype Hackware 8309 | -5/Warlord | Warlord's base attacked by MAIN.C 8587 | -5/Warlord | Met Warlord 8659 | -5/Warlord | Warlord forces counterattacked 8821 | -5/Warlord | Lost 7 allies 8881 | -5/Warlord | Opened side exit 8935 | -5/Warlord | Spotted Executioner 8940 | -5/Warlord | Destroyed Executioner 8962 | -5/Warlord | Spotted Executioner 8968 | -5/Warlord | Destroyed Executioner 8984 | -5/Warlord | Warlord base infiltrated, sounded retreat 8992 | -5/Warlord | Core integrity fell below 50% 9007 | -5/Warlord | Discovered new exit (range 14) 9014 | -5/Warlord | Spotted Executioner 9044 | -5/Warlord | Destroyed Executioner 9065 | -5/Warlord | Destroyed 35 combat bots 9065 | -5/Warlord | Lost 5 parts (2n1u2w) 9082 | -5/Warlord | Entered Proximity Caves 9428 | -4/Proximity Caves | Learned Research emergency access door positions 9524 | -4/Proximity Caves | Attracted the attention of an 0b10 checkpoint 9646 | -4/Proximity Caves | Build established: Scavenger-Mutant 9654 | -4/Proximity Caves | Learned Research emergency access door positions 9674 | -4/Proximity Caves | Learned location of Testing (-3) 10058 | -4/Proximity Caves | Spotted B-86 Titan 10099 | -4/Proximity Caves | Lost 3 parts (1n2u) 10152 | -4/Proximity Caves | Core integrity fell below 20% 10169 | -4/Proximity Caves | Destroyed B-86 Titan 10172 | -4/Proximity Caves | Identified Ghost Barrier 10173 | -4/Proximity Caves | Identified Exp. Target Analyzer 10191 | -4/Proximity Caves | Lost 10 parts (4n5u1w) 10446 | -4/Proximity Caves | Discovered new exit (range 5) 10466 | -4/Proximity Caves | Entered Factory 10466 | -4/Factory | Evolved 2 slots: Propulsion x2 10467 | -4/Factory | Loaded intel: 4 garrison access locations 10468 | -4/Factory | Build established: Hacker-Mutant 10475 | -4/Factory | Identified exit to Upper Caves 10552 | -4/Factory | Found Prototype Processor 10552 | -4/Factory | Identified Exp. Signal Interpreter 10721 | -4/Factory | Entered Upper Caves 10748 | -4/Upper Caves | Lost 4 parts (1p2u1w) 10964 | -4/Upper Caves | Lost 5 parts (2n2u1w) 11182 | -4/Upper Caves | Learned Research stockpile data 11298 | -4/Upper Caves | Discovered new exit (range 15) 11313 | -4/Upper Caves | Entered another Upper Caves area 11452 | -4/Upper Caves | Discovered new exit (range 10) 11481 | -4/Upper Caves | Entered Research 11481 | -3/Research | Evolved 2 slots: Propulsion x2 11485 | -3/Research | Loaded intel: 23 terminal locations 11784 | -3/Research | Found Fusion Bomb Launcher 11819 | -3/Research | Core integrity fell below 50% 11854 | -3/Research | Core integrity fell below 20% 11869 | -3/Research | Destroyed by S-43 Plague with Heavy Machine Gun Last Messages --------------- 11812_ Dropped Broken Imp. Gyrokinetic Inverter. 11813_ Dropped Mic. Antimatter Reactor. 11814_ Dropped Med. Storage Unit. 11814_ Penetrated by Slug. 11816_ Broken Triangulator destroyed. 11817_ The unstable cave ceiling collapses. 11817_ R-10 Processor collects Coil Gun. 11818_ Slug penetrates Wall. 11818_ P-80 Master resets P-80 Master, system corruption cleaned. 11819_ Penetrated by Slug. 11820_ System Shield destroyed. 11821_ The unstable cave ceiling collapses. 11822_ K-01 Serf destroyed. 11822_ Slug penetrates Wall. 11823_ K-01 Serf collects debris. 11826_ U-05 Engineer builds a Wall. 11827_ K-01 Serf collects debris. 11845_ Hacking Suite destroyed. 11845_ Ghost Barrier destroyed. Map ----- +----------------------------------------------------+ | ?????????????????????????????# ## #???? | | ?????????????????????????????# ## #???? | | ???????????????????????????#####/########## #???? | | ???????????????????????????# #????# #???? | | ???????????????????????????# #????# #???? | | ?????????????????#?????????# #????# #???? | | ?????????????????# ######### #????# #???? | | ?????????????????# ##/#####+##????? ????? | | ?????????????????# #????????????? | | ?????????????????# #????????????? | | ?????????????????####### ##???????????? | | ????????????????######?# ????????? | | ????????????????# # ############???????? | | ????????????????# # #??????????????????? | | ????????????????# " #??????????????????? | | ????????????????# # #??????????????????? | | ????????????????# ## #??????????????????? | | ????????????????# ??# #??????????????????? | | ????????????????######??# #??????????????????? | | ????????????????????????# #??????????????????? | | ????????????????????????# #??????????????????? | | ????????????????????????# #????????????"?????? | | ????????????????????????# #????????????"T????? | | ????????????????????????# #??????????????????? | | ????????????????????????# k#??????????????????? | | ????????????????????????#@ #??=???????????????? | | ????????????????????????# #??????????????????? | | ????????????????????????# #??????????????????? | | ????????????????????????# #??????????????????? | | ????????????????????????# +???????????[??????? | | ????????????????????????# #??????????????????? | | ????????????????????????# #??????????????????? | | ????????????????????????# #??????????????????? | | ????????????????????????# #??????????????????? | | ????????????????????????? ??????????????????? | | ????????????????????????? ??????????????????? | | ????????????????????????? ?????????????????? | | ????????????????????????? ?????????????????? | | ?????????????????????????########????????????????? | | ?????????????????????????????????????????????????? | | ?????????????????????????????????????????????????? | | ?????????????????????????????????????????????????? | | ?????????????????????????????????????????????????? | | ?????????????????????????????????????????????????? | | ???????????????????????????????????!?????????????? | | ?????????????????????????????????????????????????? | | ?????????????????????????????????????????????????? | | ?????????????????????????????????????????????????? | | ?????????????????????????????????????????????????? | | ?????????????????????????????????????????????????? | +----------------------------------------------------+ Best States ------------- Heat Dissipation 144 Energy Generation 55 Energy Capacity 900 Matter Stores 303 Matter Capacity 500 Sight Range 18 Robot Scan Range 15 Terrain Scan Density 10 Jamming Range 12 Cloak Strength 3 Base Temperature (-) 100 EM Shielding 2 Armor Coverage 225 Resistance: KI 30 Resistance: TH 20 Power Shielding 90 Evasion (%) 78 Targeting Accuracy 18 Target Analysis 10 Recoil Reduction 4 Energy Filtering 50 Particle Charging 15 Salvage Targeting 4 Offensive Hacking 20 Defensive Hacking 31 Item Schematics ----------------- Adv. Terrain Scan Processor | -7/Factory | Scanalyzed Arm. Huge Wheel | -7/Factory | Scanalyzed Robot Schematics ------------------ None Fabricated ------------ Nothing Repaired ---------- Nothing Studied --------- Hvy. Ion Cannon | -7/Factory | Hacked Gauss Rifle | -7/Factory | Hacked Hvy. Treads | -3/Research | Hacked Alien Tech Used ----------------- None Achievements -------------- We Love MA Challenges ------------ None Game ------ Seed RagnarokNavigationMediator Manual? 0 Play Time 02:31:27 Cumulative 286.4 hours Start 2026.06.23 @ 09:40:47 End 2026.06.23 @ 19:19:35 Sessions 5 Manual Loads 0 Difficulty Rogue Special Mode None Game No. 166 Rogue 166 Adventurer 0 Explorer 0 Win Type - Total 14 Types 14/0/0/0/0/0/0/0/0/0 Lore% 74 Gallery% 66 Achievement% 45 Wizard Run 0 Options --------- Layout 1 ASCII 0 Keyboard 0 Movement Numpad Keybinds 0 Fullscreen 1 Font 24/Smallcaps Map View 50x35 Zoom Use 0% Tactical HUD 1 Map Filters NONE Filters NONE Steam 1 RUN: dad2ba47-51cf-4a41-997b-96a216eb0677